[Event "Titled Tuesday Blitz May 4 2021"]
[White "Alavi, Sayed Javad"]
[Black "Demchenko, Anton"]
[WhiteFideId "12500607"]
[BlackFideId "4160258"]
[WhiteElo "2495"]
[BlackElo "2593"]
[Result "0-1"]
[Round "11"]
[TimeControl "180+1"]
[Date "2021.05.04"]
[WhiteClock "0:00:01"]
[BlackClock "0:00:09"]

1. Nf3 {[%clk 0:03:00]}  Nf6 {[%clk 0:02:59]} 2. d4 {[%clk 0:03:00]}  g6 {[%clk 0:03:00]} 3. g3 {[%clk 0:03:00]}  Bg7 {[%clk 0:03:00]} 4. Bg2 {[%clk 0:03:00]}  O-O {[%clk 0:03:01]} 5. O-O {[%clk 0:03:01]}  d6 {[%clk 0:03:01]} 6. c4 {[%clk 0:03:00]}  Nbd7 {[%clk 0:03:02]} 7. Nc3 {[%clk 0:03:00]}  e5 {[%clk 0:03:02]} 8. b3 {[%clk 0:02:57]}  Re8 {[%clk 0:03:01]} 9. Bb2 {[%clk 0:02:56]}  e4 {[%clk 0:03:00]} 10. Ng5 {[%clk 0:02:48]}  e3 {[%clk 0:02:59]} 11. fxe3 {[%clk 0:02:48]}  h6 {[%clk 0:02:42]} 12. Nge4 {[%clk 0:02:40]}  Ng4 {[%clk 0:02:28]} 13. Qd2 {[%clk 0:02:08]}  h5 {[%clk 0:02:28]} 14. h3 {[%clk 0:02:01]}  Nh6 {[%clk 0:02:28]} 15. Kh2 {[%clk 0:01:46]}  Nf8 {[%clk 0:02:18]} 16. Nf2 {[%clk 0:01:29]}  Nf5 {[%clk 0:02:09]} 17. Nfe4 {[%clk 0:01:18]}  Nh7 {[%clk 0:02:08]} 18. d5 {[%clk 0:00:55]}  Be5 {[%clk 0:02:01]} 19. Nb5 {[%clk 0:00:52]}  Bxb2 {[%clk 0:01:57]} 20. Qxb2 {[%clk 0:00:53]}  Nxe3 {[%clk 0:01:58]} 21. Rf4 {[%clk 0:00:31]}  f5 {[%clk 0:01:48]} 22. Nf2 {[%clk 0:00:20]}  Bd7 {[%clk 0:01:45]} 23. Nd4 {[%clk 0:00:16]}  Qf6 {[%clk 0:01:44]} 24. Qd2 {[%clk 0:00:15]}  g5 {[%clk 0:01:32]} 25. Rf3 {[%clk 0:00:14]}  Qe5 {[%clk 0:01:33]} 26. Rg1 {[%clk 0:00:10]}  h4 {[%clk 0:01:30]} 27. Bh1 {[%clk 0:00:08]}  Kh8 {[%clk 0:01:29]} 28. Nc2 {[%clk 0:00:05]}  Nxc2 {[%clk 0:01:18]} 29. Qxc2 {[%clk 0:00:06]}  Qxe2 {[%clk 0:01:17]} 30. Qc3+ {[%clk 0:00:07]}  Re5 {[%clk 0:00:52]} 31. gxh4 {[%clk 0:00:06]}  g4 {[%clk 0:00:52]} 32. hxg4 {[%clk 0:00:05]}  fxg4 {[%clk 0:00:53]} 33. Rf4 {[%clk 0:00:05]}  Rf8 {[%clk 0:00:43]} 34. Rxf8+ {[%clk 0:00:03]}  Nxf8 {[%clk 0:00:44]} 35. Rg2 {[%clk 0:00:03]}  Qf3 {[%clk 0:00:19]} 36. Qd4 {[%clk 0:00:02]}  Ng6 {[%clk 0:00:16]} 37. Nxg4 {[%clk 0:00:02]}  Bxg4 {[%clk 0:00:15]} 38. Qxg4 {[%clk 0:00:03]}  Qxg4 {[%clk 0:00:12]} 39. Rxg4 {[%clk 0:00:04]}  Ne7 {[%clk 0:00:11]} 40. Rf4 {[%clk 0:00:03]}  Kg7 {[%clk 0:00:10]} 41. Bg2 {[%clk 0:00:04]}  Ng6 {[%clk 0:00:10]} 42. Rg4 {[%clk 0:00:03]}  Kf6 {[%clk 0:00:10]} 43. Kg3 {[%clk 0:00:03]}  Re3+ {[%clk 0:00:10]} 44. Bf3 {[%clk 0:00:03]}  Ne5 {[%clk 0:00:09]} 45. Rf4+ {[%clk 0:00:04]}  Kg6 {[%clk 0:00:10]} 46. Kf2 {[%clk 0:00:04]}  Rc3 {[%clk 0:00:10]} 47. Be4+ {[%clk 0:00:04]}  Kg7 {[%clk 0:00:10]} 48. Ke2 {[%clk 0:00:03]}  Rh3 {[%clk 0:00:10]} 49. Kd2 {[%clk 0:00:03]}  Rh2+ {[%clk 0:00:10]} 50. Kc3 {[%clk 0:00:04]}  Rxa2 {[%clk 0:00:10]} 51. Rf1 {[%clk 0:00:03]}  Rh2 {[%clk 0:00:10]} 52. Rf4 {[%clk 0:00:02]}  a5 {[%clk 0:00:08]} 53. Kd4 {[%clk 0:00:02]}  b6 {[%clk 0:00:08]} 54. Kc3 {[%clk 0:00:01]}  Rh3+ {[%clk 0:00:08]} 55. Kb2 {[%clk 0:00:02]}  Rg3 {[%clk 0:00:08]} 56. Kc2 {[%clk 0:00:02]}  Re3 {[%clk 0:00:08]} 57. Kb2 {[%clk 0:00:02]}  Re2+ {[%clk 0:00:08]} 58. Kc3 {[%clk 0:00:01]}  Rh2 {[%clk 0:00:09]} 0-1


[Site "https://www.chess.com"]

[Event "Titled Tuesday Blitz May 4 2021"]
[White "Alavkin, Arseny"]
[Black "Sevian, Samuel"]
[WhiteFideId "4120612"]
[BlackFideId "2040506"]
[WhiteElo "2416"]
[BlackElo "2920"]
[Result "0-1"]
[Round "11"]
[TimeControl "180+1"]
[Date "2021.05.04"]
[WhiteClock "0:02:04"]
[BlackClock "0:01:01"]

1. c4 {[%clk 0:03:00]}  Nf6 {[%clk 0:02:41]} 2. Nc3 {[%clk 0:02:59]}  e6 {[%clk 0:02:42]} 3. e4 {[%clk 0:02:58]}  c5 {[%clk 0:02:43]} 4. Nf3 {[%clk 0:02:57]}  Nc6 {[%clk 0:02:41]} 5. g3 {[%clk 0:02:57]}  Bd6 {[%clk 0:02:36]} 6. Bg2 {[%clk 0:02:57]}  O-O {[%clk 0:02:36]} 7. O-O {[%clk 0:02:57]}  Rb8 {[%clk 0:02:35]} 8. d4 {[%clk 0:02:58]}  cxd4 {[%clk 0:02:34]} 9. Nxd4 {[%clk 0:02:59]}  Be5 {[%clk 0:02:34]} 10. Be3 {[%clk 0:02:57]}  d6 {[%clk 0:02:33]} 11. Rc1 {[%clk 0:02:55]}  a6 {[%clk 0:02:26]} 12. h3 {[%clk 0:02:54]}  Re8 {[%clk 0:02:17]} 13. Nde2 {[%clk 0:02:54]}  b5 {[%clk 0:02:12]} 14. cxb5 {[%clk 0:02:52]}  axb5 {[%clk 0:02:13]} 15. f4 {[%clk 0:02:52]}  Bxc3 {[%clk 0:02:13]} 16. Rxc3 {[%clk 0:02:53]}  Na5 {[%clk 0:02:08]} 17. b3 {[%clk 0:02:49]}  Bb7 {[%clk 0:02:07]} 18. Qd3 {[%clk 0:02:38]}  b4 {[%clk 0:02:06]} 19. Rc2 {[%clk 0:02:37]}  e5 {[%clk 0:02:04]} 20. f5 {[%clk 0:02:34]}  d5 {[%clk 0:01:57]} 21. exd5 {[%clk 0:02:35]}  e4 {[%clk 0:01:57]} 22. Qd4 {[%clk 0:02:28]}  Nxd5 {[%clk 0:01:22]} 23. Rd2 {[%clk 0:02:27]}  Nxe3 {[%clk 0:01:04]} 24. Qxe3 {[%clk 0:02:28]}  Qf6 {[%clk 0:01:04]} 25. g4 {[%clk 0:02:26]}  Ba6 {[%clk 0:01:04]} 26. Rfd1 {[%clk 0:02:23]}  Bd3 {[%clk 0:00:59]} 27. Nf4 {[%clk 0:02:20]}  Qh6 {[%clk 0:00:55]} 28. Nd5 {[%clk 0:02:13]}  Qd6 {[%clk 0:00:52]} 29. Nf4 {[%clk 0:02:12]}  Qh6 {[%clk 0:00:51]} 30. Nd5 {[%clk 0:02:12]}  Qxe3+ {[%clk 0:00:50]} 31. Nxe3 {[%clk 0:02:12]}  Nc6 {[%clk 0:00:51]} 32. Rxd3 {[%clk 0:02:08]}  exd3 {[%clk 0:00:50]} 33. Rxd3 {[%clk 0:02:09]}  Ne5 {[%clk 0:00:50]} 34. Rd4 {[%clk 0:02:04]}  Rbd8 {[%clk 0:00:51]} 35. Rxd8 {[%clk 0:02:00]}  Rxd8 {[%clk 0:00:51]} 36. Nd5 {[%clk 0:02:01]}  Nd3 {[%clk 0:00:51]} 37. Be4 {[%clk 0:02:01]}  Kf8 {[%clk 0:00:50]} 38. Kg2 {[%clk 0:01:59]}  Rxd5 {[%clk 0:00:49]} 39. Bxd5 {[%clk 0:01:57]}  Nf4+ {[%clk 0:00:50]} 40. Kf3 {[%clk 0:01:58]}  Nxd5 {[%clk 0:00:51]} 41. Ke4 {[%clk 0:01:51]}  Nc3+ {[%clk 0:00:51]} 42. Kd3 {[%clk 0:01:52]}  Nxa2 {[%clk 0:00:52]} 43. Kc2 {[%clk 0:01:52]}  Ke7 {[%clk 0:00:52]} 44. Kd3 {[%clk 0:01:53]}  Kf6 {[%clk 0:00:52]} 45. Ke4 {[%clk 0:01:53]}  Kg5 {[%clk 0:00:52]} 46. Kf3 {[%clk 0:01:54]}  Kh4 {[%clk 0:00:52]} 47. Kg2 {[%clk 0:01:55]}  f6 {[%clk 0:00:52]} 48. Kh2 {[%clk 0:01:56]}  g5 {[%clk 0:00:52]} 49. Kg2 {[%clk 0:01:56]}  Nc1 {[%clk 0:00:51]} 50. Kh2 {[%clk 0:01:57]}  Nxb3 {[%clk 0:00:52]} 51. Kg2 {[%clk 0:01:58]}  Nc5 {[%clk 0:00:53]} 52. Kh2 {[%clk 0:01:59]}  Nd7 {[%clk 0:00:54]} 53. Kg2 {[%clk 0:02:00]}  Nf8 {[%clk 0:00:55]} 54. Kh2 {[%clk 0:02:00]}  h6 {[%clk 0:00:56]} 55. Kg2 {[%clk 0:02:01]}  Nd7 {[%clk 0:00:56]} 56. Kh2 {[%clk 0:02:02]}  b3 {[%clk 0:00:57]} 57. Kg2 {[%clk 0:02:03]}  b2 {[%clk 0:00:58]} 58. Kh2 {[%clk 0:02:04]}  b1=Q {[%clk 0:00:59]} 59. Kg2 {[%clk 0:02:05]}  Qc2+ {[%clk 0:00:59]} 60. Kf1 {[%clk 0:02:05]}  Kg3 {[%clk 0:00:59]} 61. Ke1 {[%clk 0:02:05]}  Kf3 {[%clk 0:01:00]} 62. h4 {[%clk 0:02:04]}  Qe2# {[%clk 0:01:01]} 0-1


[Site "https://www.chess.com"]

[Event "Titled Tuesday Blitz May 4 2021"]
[White "Ambrogi, Agustin"]
[Black "Amarasinghe, A A C B"]
[WhiteFideId "170933"]
[BlackFideId "9901809"]
[WhiteElo "2214"]
[BlackElo "1778"]
[Result "1-0"]
[Round "11"]
[TimeControl "180+1"]
[Date "2021.05.04"]
[WhiteClock "0:01:13"]
[BlackClock "0:02:00"]

1. e4 {[%clk 0:03:00]}  c5 {[%clk 0:02:58]} 2. d4 {[%clk 0:02:58]}  cxd4 {[%clk 0:02:57]} 3. c3 {[%clk 0:02:59]}  g6 {[%clk 0:02:57]} 4. Nf3 {[%clk 0:02:58]}  d5 {[%clk 0:02:48]} 5. Qxd4 {[%clk 0:02:54]}  Nf6 {[%clk 0:02:47]} 6. exd5 {[%clk 0:02:50]}  Qxd5 {[%clk 0:02:44]} 7. Bc4 {[%clk 0:02:48]}  Qxd4 {[%clk 0:02:37]} 8. Nxd4 {[%clk 0:02:49]}  a6 {[%clk 0:02:33]} 9. O-O {[%clk 0:02:49]}  Bd7 {[%clk 0:02:28]} 10. Be2 {[%clk 0:02:48]}  Nc6 {[%clk 0:02:27]} 11. Nxc6 {[%clk 0:02:34]}  Bxc6 {[%clk 0:02:26]} 12. Bg5 {[%clk 0:01:56]}  Bg7 {[%clk 0:02:24]} 13. Nd2 {[%clk 0:01:49]}  h6 {[%clk 0:02:23]} 14. Bxf6 {[%clk 0:01:47]}  Bxf6 {[%clk 0:02:20]} 15. Bf3 {[%clk 0:01:48]}  Bxf3 {[%clk 0:02:13]} 16. Nxf3 {[%clk 0:01:15]}  O-O-O {[%clk 0:02:14]} 17. Rfd1 {[%clk 0:01:11]}  Rxd1+ {[%clk 0:02:10]} 18. Rxd1 {[%clk 0:01:10]}  Rd8 {[%clk 0:02:11]} 19. Rxd8+ {[%clk 0:01:10]}  Kxd8 {[%clk 0:02:12]} 20. Kf1 {[%clk 0:01:11]}  Kd7 {[%clk 0:02:12]} 21. Ke2 {[%clk 0:01:12]}  Kd6 {[%clk 0:02:13]} 22. Kd3 {[%clk 0:01:13]}  Kd5 {[%clk 0:02:13]} 23. c4+ {[%clk 0:01:13]}  Kc5 {[%clk 0:02:11]} 24. b3 {[%clk 0:01:14]}  Kb4 {[%clk 0:02:10]} 25. Kc2 {[%clk 0:01:14]}  a5 {[%clk 0:02:04]} 26. Ne1 {[%clk 0:01:13]}  Ka3 {[%clk 0:02:00]} 27. Kb1 {[%clk 0:01:13]}  a4 {[%clk 0:02:00]} 28. Nc2# {[%clk 0:01:13]} 1-0


[Site "https://www.chess.com"]

[Event "Titled Tuesday Blitz May 4 2021"]
[White "Aradhya, Garg"]
[Black "Diaz Camallonga, Carles"]
[WhiteFideId "25006746"]
[BlackFideId "22235256"]
[WhiteElo "2146"]
[BlackElo "2438"]
[Result "1/2-1/2"]
[Round "11"]
[TimeControl "180+1"]
[Date "2021.05.04"]
[WhiteClock "0:01:05"]
[BlackClock "0:00:41"]

1. d4 {[%clk 0:03:00]}  e6 {[%clk 0:03:00]} 2. Nf3 {[%clk 0:02:58]}  Nf6 {[%clk 0:03:01]} 3. Bf4 {[%clk 0:02:56]}  c5 {[%clk 0:03:00]} 4. e3 {[%clk 0:02:56]}  Nc6 {[%clk 0:03:01]} 5. Nbd2 {[%clk 0:02:56]}  d5 {[%clk 0:03:01]} 6. c3 {[%clk 0:02:55]}  Bd6 {[%clk 0:03:00]} 7. dxc5 {[%clk 0:02:53]}  Bxc5 {[%clk 0:02:57]} 8. Bb5 {[%clk 0:02:53]}  O-O {[%clk 0:02:56]} 9. O-O {[%clk 0:02:53]}  Qb6 {[%clk 0:02:53]} 10. Qe2 {[%clk 0:02:51]}  a6 {[%clk 0:02:50]} 11. Bxc6 {[%clk 0:02:50]}  bxc6 {[%clk 0:02:51]} 12. b4 {[%clk 0:02:49]}  Be7 {[%clk 0:02:51]} 13. Nb3 {[%clk 0:02:46]}  Ne4 {[%clk 0:02:46]} 14. Rfc1 {[%clk 0:02:45]}  c5 {[%clk 0:02:42]} 15. bxc5 {[%clk 0:02:44]}  Nxc5 {[%clk 0:02:43]} 16. Rab1 {[%clk 0:02:43]}  Bd7 {[%clk 0:02:33]} 17. c4 {[%clk 0:02:42]}  dxc4 {[%clk 0:02:30]} 18. Nxc5 {[%clk 0:02:36]}  Qxc5 {[%clk 0:02:27]} 19. Qxc4 {[%clk 0:02:32]}  Qxc4 {[%clk 0:02:22]} 20. Rxc4 {[%clk 0:02:33]}  Rfc8 {[%clk 0:02:22]} 21. Rbc1 {[%clk 0:02:33]}  Ba3 {[%clk 0:02:13]} 22. Rxc8+ {[%clk 0:02:32]}  Rxc8 {[%clk 0:02:12]} 23. Rxc8+ {[%clk 0:02:32]}  Bxc8 {[%clk 0:02:13]} 24. e4 {[%clk 0:02:21]}  Bb7 {[%clk 0:02:12]} 25. Nd2 {[%clk 0:02:22]}  f6 {[%clk 0:02:03]} 26. e5 {[%clk 0:02:21]}  Bc1 {[%clk 0:01:53]} 27. exf6 {[%clk 0:02:20]}  gxf6 {[%clk 0:01:52]} 28. Be3 {[%clk 0:02:20]}  Bd5 {[%clk 0:01:38]} 29. a4 {[%clk 0:02:15]}  Kf7 {[%clk 0:01:34]} 30. Kf1 {[%clk 0:02:07]}  Ke7 {[%clk 0:01:33]} 31. f3 {[%clk 0:02:05]}  Bc6 {[%clk 0:01:15]} 32. a5 {[%clk 0:02:01]}  Bb5+ {[%clk 0:01:13]} 33. Kf2 {[%clk 0:02:00]}  Ba3 {[%clk 0:01:11]} 34. Ne4 {[%clk 0:01:56]}  f5 {[%clk 0:01:03]} 35. Bg5+ {[%clk 0:01:55]}  Kf7 {[%clk 0:01:00]} 36. Nc3 {[%clk 0:01:43]}  Bc5+ {[%clk 0:00:59]} 37. Be3 {[%clk 0:01:43]}  Bxe3+ {[%clk 0:00:53]} 38. Kxe3 {[%clk 0:01:44]}  Bf1 {[%clk 0:00:53]} 39. g3 {[%clk 0:01:44]}  e5 {[%clk 0:00:53]} 40. f4 {[%clk 0:01:44]}  Ke6 {[%clk 0:00:53]} 41. h4 {[%clk 0:01:40]}  Kd6 {[%clk 0:00:52]} 42. h5 {[%clk 0:01:38]}  h6 {[%clk 0:00:51]} 43. fxe5+ {[%clk 0:01:19]}  Kxe5 {[%clk 0:00:51]} 44. Na2 {[%clk 0:01:19]}  Bc4 {[%clk 0:00:44]} 45. Nb4 {[%clk 0:01:19]}  Bb5 {[%clk 0:00:44]} 46. Nc2 {[%clk 0:01:16]}  Kd5 {[%clk 0:00:42]} 47. Kf4 {[%clk 0:01:14]}  Be8 {[%clk 0:00:41]} 48. Ne3+ {[%clk 0:01:10]}  Kc5 {[%clk 0:00:40]} 49. Nxf5 {[%clk 0:01:10]}  Bxh5 {[%clk 0:00:39]} 50. Nxh6 {[%clk 0:01:06]}  Kb5 {[%clk 0:00:40]} 51. Ke3 {[%clk 0:01:01]}  Kxa5 {[%clk 0:00:39]} 52. Kd2 {[%clk 0:01:01]}  Kb4 {[%clk 0:00:39]} 53. Kc1 {[%clk 0:01:01]}  Ka3 {[%clk 0:00:40]} 54. Kb1 {[%clk 0:01:01]}  Bg6+ {[%clk 0:00:40]} 55. Ka1 {[%clk 0:01:02]}  a5 {[%clk 0:00:40]} 56. g4 {[%clk 0:01:02]}  a4 {[%clk 0:00:40]} 57. Nf5 {[%clk 0:01:02]}  Kb3 {[%clk 0:00:40]} 58. Ne7 {[%clk 0:01:02]}  Bf7 {[%clk 0:00:39]} 59. g5 {[%clk 0:01:02]}  a3 {[%clk 0:00:39]} 60. g6 {[%clk 0:01:02]}  Be6 {[%clk 0:00:40]} 61. g7 {[%clk 0:01:02]}  Bf7 {[%clk 0:00:40]} 62. Nf5 {[%clk 0:01:02]}  a2 {[%clk 0:00:39]} 63. Nd4+ {[%clk 0:01:02]}  Kc3 {[%clk 0:00:39]} 64. Nf3 {[%clk 0:01:02]}  Bg8 {[%clk 0:00:38]} 65. Nh4 {[%clk 0:01:02]}  Kb3 {[%clk 0:00:38]} 66. Ng6 {[%clk 0:01:00]}  Ka3 {[%clk 0:00:38]} 67. Ne5 {[%clk 0:01:00]}  Kb3 {[%clk 0:00:38]} 68. Nc6 {[%clk 0:01:01]}  Ka3 {[%clk 0:00:37]} 69. Ne7 {[%clk 0:01:01]}  Bf7 {[%clk 0:00:37]} 70. Nf5 {[%clk 0:01:01]}  Bg8 {[%clk 0:00:37]} 71. Nd6 {[%clk 0:01:01]}  Be6 {[%clk 0:00:36]} 72. Ne4 {[%clk 0:00:59]}  Bg8 {[%clk 0:00:35]} 73. Nc3 {[%clk 0:00:59]}  Bf7 {[%clk 0:00:35]} 74. Ne2 {[%clk 0:00:59]}  Bg8 {[%clk 0:00:35]} 75. Ng3 {[%clk 0:00:59]}  Bf7 {[%clk 0:00:35]} 76. Ne4 {[%clk 0:01:00]}  Bg8 {[%clk 0:00:35]} 77. Nf6 {[%clk 0:01:00]}  Bf7 {[%clk 0:00:34]} 78. g8=Q {[%clk 0:01:01]}  Bxg8 {[%clk 0:00:35]} 79. Nxg8 {[%clk 0:01:01]}  Kb4 {[%clk 0:00:35]} 80. Nf6 {[%clk 0:01:02]}  Kc5 {[%clk 0:00:36]} 81. Ng4 {[%clk 0:01:02]}  Kd6 {[%clk 0:00:37]} 82. Kb2 {[%clk 0:01:02]}  Ke7 {[%clk 0:00:38]} 83. Ka1 {[%clk 0:01:03]}  Kf8 {[%clk 0:00:39]} 84. Ne3 {[%clk 0:01:03]}  Kg7 {[%clk 0:00:40]} 85. Nd5 {[%clk 0:01:03]}  Kh6 {[%clk 0:00:41]} 86. Nc3 {[%clk 0:01:04]}  Kg5 {[%clk 0:00:41]} 87. Kxa2 {[%clk 0:01:05]} 1/2-1/2


[Site "https://www.chess.com"]

[Event "Titled Tuesday Blitz May 4 2021"]
[White "Batchimeg, Tuvshintugs"]
[Black "Vargas, Gabriela"]
[WhiteFideId "4900839"]
[BlackFideId "3700860"]
[WhiteElo "2295"]
[BlackElo "2116"]
[Result "1-0"]
[Round "11"]
[TimeControl "180+1"]
[Date "2021.05.04"]
[WhiteClock "0:00:12"]
[BlackClock "0:00:15"]

1. d4 {[%clk 0:03:00]}  d5 {[%clk 0:02:59]} 2. c4 {[%clk 0:02:59]}  e6 {[%clk 0:02:57]} 3. Nf3 {[%clk 0:02:59]}  c6 {[%clk 0:02:52]} 4. Nc3 {[%clk 0:02:53]}  Nf6 {[%clk 0:02:52]} 5. Bg5 {[%clk 0:02:50]}  Nbd7 {[%clk 0:02:52]} 6. e3 {[%clk 0:02:46]}  Qa5 {[%clk 0:02:52]} 7. Nd2 {[%clk 0:02:45]}  dxc4 {[%clk 0:02:51]} 8. Bxf6 {[%clk 0:02:44]}  Nxf6 {[%clk 0:02:48]} 9. Nxc4 {[%clk 0:02:43]}  Qc7 {[%clk 0:02:48]} 10. Rc1 {[%clk 0:02:40]}  Be7 {[%clk 0:02:47]} 11. Be2 {[%clk 0:02:38]}  O-O {[%clk 0:02:47]} 12. O-O {[%clk 0:02:37]}  Rd8 {[%clk 0:02:47]} 13. Qc2 {[%clk 0:02:37]}  Bd7 {[%clk 0:02:46]} 14. Bf3 {[%clk 0:02:33]}  Be8 {[%clk 0:02:45]} 15. h3 {[%clk 0:02:27]}  Rac8 {[%clk 0:02:45]} 16. Ne4 {[%clk 0:01:59]}  Nxe4 {[%clk 0:02:41]} 17. Qxe4 {[%clk 0:01:59]}  b5 {[%clk 0:01:49]} 18. Ne5 {[%clk 0:01:52]}  Qa5 {[%clk 0:01:47]} 19. a3 {[%clk 0:01:43]}  c5 {[%clk 0:01:45]} 20. dxc5 {[%clk 0:01:42]}  Rd2 {[%clk 0:01:36]} 21. b4 {[%clk 0:01:33]}  Qxa3 {[%clk 0:01:33]} 22. Ra1 {[%clk 0:01:24]}  Qb2 {[%clk 0:01:33]} 23. Rxa7 {[%clk 0:01:21]}  Bf6 {[%clk 0:01:31]} 24. Ng4 {[%clk 0:01:15]}  Bc3 {[%clk 0:01:11]} 25. Ra8 {[%clk 0:01:11]}  Rdd8 {[%clk 0:01:06]} 26. Rxc8 {[%clk 0:01:04]}  Rxc8 {[%clk 0:01:07]} 27. Qb7 {[%clk 0:00:48]}  Rd8 {[%clk 0:01:06]} 28. Qe7 {[%clk 0:00:46]}  Bf6 {[%clk 0:01:00]} 29. Nxf6+ {[%clk 0:00:45]}  Qxf6 {[%clk 0:01:01]} 30. Qxf6 {[%clk 0:00:39]}  gxf6 {[%clk 0:01:02]} 31. c6 {[%clk 0:00:39]}  Rc8 {[%clk 0:00:59]} 32. Rc1 {[%clk 0:00:38]}  Rc7 {[%clk 0:00:59]} 33. Rc5 {[%clk 0:00:38]}  Kf8 {[%clk 0:00:58]} 34. Rxb5 {[%clk 0:00:37]}  Ke7 {[%clk 0:00:50]} 35. Rb7 {[%clk 0:00:37]}  Kd6 {[%clk 0:00:49]} 36. Rxc7 {[%clk 0:00:35]}  Kxc7 {[%clk 0:00:50]} 37. b5 {[%clk 0:00:36]}  Kb6 {[%clk 0:00:50]} 38. Be2 {[%clk 0:00:36]}  f5 {[%clk 0:00:48]} 39. g4 {[%clk 0:00:35]}  fxg4 {[%clk 0:00:45]} 40. hxg4 {[%clk 0:00:36]}  e5 {[%clk 0:00:46]} 41. Kg2 {[%clk 0:00:35]}  f6 {[%clk 0:00:46]} 42. Kg3 {[%clk 0:00:35]}  Bf7 {[%clk 0:00:46]} 43. f4 {[%clk 0:00:35]}  Bd5 {[%clk 0:00:43]} 44. fxe5 {[%clk 0:00:33]}  fxe5 {[%clk 0:00:44]} 45. Kh4 {[%clk 0:00:33]}  Kc5 {[%clk 0:00:40]} 46. Kg5 {[%clk 0:00:33]}  Kd6 {[%clk 0:00:37]} 47. Kf6 {[%clk 0:00:33]}  Be4 {[%clk 0:00:35]} 48. g5 {[%clk 0:00:29]}  Bd5 {[%clk 0:00:33]} 49. Bd3 {[%clk 0:00:28]}  e4 {[%clk 0:00:25]} 50. Be2 {[%clk 0:00:27]}  Be6 {[%clk 0:00:20]} 51. Bh5 {[%clk 0:00:20]}  Bc4 {[%clk 0:00:18]} 52. Kg7 {[%clk 0:00:15]}  Bxb5 {[%clk 0:00:18]} 53. Be8 {[%clk 0:00:13]}  Ke7 {[%clk 0:00:18]} 54. Bd7 {[%clk 0:00:13]}  Bc4 {[%clk 0:00:16]} 55. Kxh7 {[%clk 0:00:13]}  Kf8 {[%clk 0:00:15]} 56. g6 {[%clk 0:00:13]}  Bg8+ {[%clk 0:00:15]} 57. Kh6 {[%clk 0:00:13]}  Be6 {[%clk 0:00:15]} 58. Bxe6 {[%clk 0:00:12]} 1-0


[Site "https://www.chess.com"]

[Event "Titled Tuesday Blitz May 4 2021"]
[White "Begunov, Konstantin"]
[Black "Yurtseven, Melih"]
[WhiteFideId "4118510"]
[BlackFideId "6312160"]
[WhiteElo "2262"]
[BlackElo "2160"]
[Result "1-0"]
[Round "11"]
[TimeControl "180+1"]
[Date "2021.05.04"]
[WhiteClock "0:00:32"]
[BlackClock "0:00:14"]

1. d4 {[%clk 0:03:00]}  e6 {[%clk 0:03:00]} 2. c4 {[%clk 0:03:00]}  Nf6 {[%clk 0:03:01]} 3. Nf3 {[%clk 0:02:58]}  c5 {[%clk 0:03:01]} 4. Nc3 {[%clk 0:02:58]}  d5 {[%clk 0:02:59]} 5. cxd5 {[%clk 0:02:56]}  Nxd5 {[%clk 0:03:00]} 6. g3 {[%clk 0:02:55]}  Nxc3 {[%clk 0:03:01]} 7. bxc3 {[%clk 0:02:55]}  cxd4 {[%clk 0:03:01]} 8. cxd4 {[%clk 0:02:55]}  Bb4+ {[%clk 0:03:02]} 9. Bd2 {[%clk 0:02:56]}  Bxd2+ {[%clk 0:03:03]} 10. Qxd2 {[%clk 0:02:57]}  O-O {[%clk 0:03:03]} 11. Bg2 {[%clk 0:02:57]}  Bd7 {[%clk 0:03:03]} 12. Ne5 {[%clk 0:02:54]}  Bc6 {[%clk 0:03:04]} 13. Nxc6 {[%clk 0:02:52]}  Nxc6 {[%clk 0:03:05]} 14. Rd1 {[%clk 0:02:48]}  Rc8 {[%clk 0:02:59]} 15. O-O {[%clk 0:02:48]}  Qd6 {[%clk 0:02:57]} 16. e3 {[%clk 0:02:46]}  Qa3 {[%clk 0:02:57]} 17. Rb1 {[%clk 0:02:42]}  Rc7 {[%clk 0:02:55]} 18. Rb3 {[%clk 0:02:37]}  Qa6 {[%clk 0:02:54]} 19. Rc1 {[%clk 0:02:36]}  Rfc8 {[%clk 0:02:53]} 20. Rbc3 {[%clk 0:02:35]}  Qa5 {[%clk 0:02:46]} 21. Qc2 {[%clk 0:02:31]}  h5 {[%clk 0:02:35]} 22. Rc5 {[%clk 0:02:22]}  Qa3 {[%clk 0:02:35]} 23. Rxh5 {[%clk 0:02:11]}  g6 {[%clk 0:02:32]} 24. Rc5 {[%clk 0:02:09]}  Kg7 {[%clk 0:02:28]} 25. Qc3 {[%clk 0:02:00]}  Qxc3 {[%clk 0:01:54]} 26. R1xc3 {[%clk 0:02:01]}  Kf6 {[%clk 0:01:55]} 27. e4 {[%clk 0:01:51]}  e5 {[%clk 0:01:08]} 28. d5 {[%clk 0:01:39]}  Ke7 {[%clk 0:01:09]} 29. dxc6 {[%clk 0:01:37]}  Rxc6 {[%clk 0:01:08]} 30. Rxc6 {[%clk 0:01:36]}  bxc6 {[%clk 0:01:09]} 31. Bf1 {[%clk 0:01:30]}  Kd6 {[%clk 0:01:09]} 32. Bc4 {[%clk 0:01:26]}  f6 {[%clk 0:01:08]} 33. Bb3 {[%clk 0:01:21]}  a5 {[%clk 0:01:04]} 34. h4 {[%clk 0:01:19]}  Rf8 {[%clk 0:01:02]} 35. Rd3+ {[%clk 0:01:15]}  Kc5 {[%clk 0:01:01]} 36. Rd7 {[%clk 0:01:13]}  Ra8 {[%clk 0:00:51]} 37. Kg2 {[%clk 0:01:06]}  a4 {[%clk 0:00:48]} 38. Bf7 {[%clk 0:01:05]}  g5 {[%clk 0:00:41]} 39. h5 {[%clk 0:01:05]}  Kb4 {[%clk 0:00:36]} 40. Rb7+ {[%clk 0:00:52]}  Kc5 {[%clk 0:00:29]} 41. Kf3 {[%clk 0:00:50]}  Kd4 {[%clk 0:00:25]} 42. Rd7+ {[%clk 0:00:41]}  Kc5 {[%clk 0:00:25]} 43. Kg4 {[%clk 0:00:39]}  Kb4 {[%clk 0:00:24]} 44. Kf5 {[%clk 0:00:37]}  c5 {[%clk 0:00:23]} 45. Rb7+ {[%clk 0:00:35]}  Kc3 {[%clk 0:00:21]} 46. h6 {[%clk 0:00:35]}  Rh8 {[%clk 0:00:14]} 47. Kg6 {[%clk 0:00:34]}  Kd4 {[%clk 0:00:15]} 48. Kg7 {[%clk 0:00:33]}  Rb8 {[%clk 0:00:14]} 49. Rxb8 {[%clk 0:00:32]} 1-0


[Site "https://www.chess.com"]